[Event "Titled Tuesday Blitz December 20 Early 2022"]
[White "Crone, Stephan"]
[Black "Ivan11Martic"]
[WhiteFideId "4670175"]
[WhiteElo "1860"]
[BlackElo "2528"]
[Result "1-0"]
[Round "11"]
[TimeControl "180+2"]
[Date "2022.12.20"]
[WhiteClock "0:00:13"]
[BlackClock "0:00:34"]

1. e4 {[%clk 0:02:53]}  c5 {[%clk 0:02:58]} 2. Nf3 {[%clk 0:02:52]}  Nc6 {[%clk 0:02:58]} 3. Bb5 {[%clk 0:02:51]}  d6 {[%clk 0:02:56]} 4. O-O {[%clk 0:02:49]}  Bd7 {[%clk 0:02:56]} 5. c3 {[%clk 0:02:47]}  Nf6 {[%clk 0:02:55]} 6. Re1 {[%clk 0:02:47]}  a6 {[%clk 0:02:56]} 7. Bf1 {[%clk 0:02:45]}  Bg4 {[%clk 0:02:54]} 8. d4 {[%clk 0:02:44]}  cxd4 {[%clk 0:02:51]} 9. cxd4 {[%clk 0:02:45]}  Bxf3 {[%clk 0:02:52]} 10. gxf3 {[%clk 0:02:45]}  d5 {[%clk 0:02:51]} 11. e5 {[%clk 0:02:27]}  Nh5 {[%clk 0:02:50]} 12. e6 {[%clk 0:02:26]}  fxe6 {[%clk 0:02:45]} 13. f4 {[%clk 0:01:52]}  g6 {[%clk 0:02:45]} 14. Bh3 {[%clk 0:01:52]}  Ng7 {[%clk 0:02:41]} 15. Nc3 {[%clk 0:01:43]}  Qd6 {[%clk 0:02:39]} 16. Na4 {[%clk 0:01:39]}  Kf7 {[%clk 0:02:23]} 17. Nc5 {[%clk 0:01:37]}  Nd8 {[%clk 0:02:15]} 18. Nd3 {[%clk 0:01:34]}  Nf5 {[%clk 0:02:11]} 19. Ne5+ {[%clk 0:01:34]}  Kg8 {[%clk 0:02:10]} 20. Bxf5 {[%clk 0:01:32]}  exf5 {[%clk 0:02:09]} 21. Be3 {[%clk 0:01:06]}  Bg7 {[%clk 0:02:08]} 22. Rc1 {[%clk 0:01:05]}  h6 {[%clk 0:02:05]} 23. Qc2 {[%clk 0:01:03]}  Ne6 {[%clk 0:01:52]} 24. Nxg6 {[%clk 0:00:56]}  Rh7 {[%clk 0:01:50]} 25. Ne5 {[%clk 0:00:56]}  Rf8 {[%clk 0:01:46]} 26. Qb3 {[%clk 0:00:52]}  Bxe5 {[%clk 0:01:38]} 27. dxe5 {[%clk 0:00:53]}  Rg7+ {[%clk 0:01:33]} 28. Kf1 {[%clk 0:00:52]}  Qd7 {[%clk 0:01:32]} 29. Red1 {[%clk 0:00:50]}  Kh7 {[%clk 0:01:28]} 30. Qxd5 {[%clk 0:00:48]}  Qxd5 {[%clk 0:01:08]} 31. Rxd5 {[%clk 0:00:49]}  Rfg8 {[%clk 0:01:06]} 32. Ke2 {[%clk 0:00:50]}  Rg2 {[%clk 0:01:04]} 33. Rd7 {[%clk 0:00:46]}  R8g7 {[%clk 0:01:04]} 34. h4 {[%clk 0:00:38]}  Kg6 {[%clk 0:01:02]} 35. Rxb7 {[%clk 0:00:36]}  Kh5 {[%clk 0:01:02]} 36. Rb6 {[%clk 0:00:34]}  R7g6 {[%clk 0:01:00]} 37. Rcc6 {[%clk 0:00:33]}  Nf8 {[%clk 0:00:55]} 38. Rxa6 {[%clk 0:00:30]}  Kxh4 {[%clk 0:00:53]} 39. Rxg6 {[%clk 0:00:28]}  Nxg6 {[%clk 0:00:54]} 40. Kf3 {[%clk 0:00:25]}  Kh3 {[%clk 0:00:52]} 41. b4 {[%clk 0:00:26]}  h5 {[%clk 0:00:50]} 42. b5 {[%clk 0:00:25]}  Nh4+ {[%clk 0:00:50]} 43. Ke2 {[%clk 0:00:25]}  Rg1 {[%clk 0:00:51]} 44. Ra3 {[%clk 0:00:23]}  Rg8 {[%clk 0:00:48]} 45. b6 {[%clk 0:00:23]}  Kg2 {[%clk 0:00:46]} 46. Rb3 {[%clk 0:00:20]}  Nf3 {[%clk 0:00:45]} 47. b7 {[%clk 0:00:19]}  Rb8 {[%clk 0:00:40]} 48. Ba7 {[%clk 0:00:19]}  Rxb7 {[%clk 0:00:39]} 49. Rxb7 {[%clk 0:00:20]}  h4 {[%clk 0:00:39]} 50. Rxe7 {[%clk 0:00:19]}  Ng1+ {[%clk 0:00:39]} 51. Kd2 {[%clk 0:00:17]}  h3 {[%clk 0:00:40]} 52. Rh7 {[%clk 0:00:17]}  Kf1 {[%clk 0:00:35]} 53. f3 {[%clk 0:00:15]}  h2 {[%clk 0:00:32]} 54. Rxh2 {[%clk 0:00:14]}  Nxf3+ {[%clk 0:00:33]} 55. Kd3 {[%clk 0:00:12]}  Nxh2 {[%clk 0:00:34]} 56. e6 {[%clk 0:00:13]} 1-0


[Site "https://www.chess.com"]

[Event "Titled Tuesday Blitz December 20 Early 2022"]
[White "DIMONBANAN"]
[Black "ChessShop"]
[WhiteElo "2416"]
[BlackElo "2502"]
[Result "0-1"]
[Round "11"]
[TimeControl "180+2"]
[Date "2022.12.20"]
[WhiteClock "0:00:19"]
[BlackClock "0:00:09"]

1. e4 {[%clk 0:03:00]}  e5 {[%clk 0:02:57]} 2. Nf3 {[%clk 0:03:01]}  d6 {[%clk 0:02:57]} 3. Nc3 {[%clk 0:03:00]}  Be7 {[%clk 0:02:57]} 4. d4 {[%clk 0:03:00]}  exd4 {[%clk 0:02:58]} 5. Nxd4 {[%clk 0:03:01]}  Nf6 {[%clk 0:02:59]} 6. g3 {[%clk 0:02:53]}  O-O {[%clk 0:02:59]} 7. Bg2 {[%clk 0:02:54]}  Re8 {[%clk 0:03:00]} 8. O-O {[%clk 0:02:54]}  Nbd7 {[%clk 0:03:00]} 9. Nf5 {[%clk 0:02:54]}  Bf8 {[%clk 0:02:59]} 10. Bg5 {[%clk 0:02:49]}  h6 {[%clk 0:02:59]} 11. Be3 {[%clk 0:02:47]}  Ne5 {[%clk 0:02:59]} 12. h3 {[%clk 0:02:47]}  Bxf5 {[%clk 0:02:51]} 13. exf5 {[%clk 0:02:47]}  c6 {[%clk 0:02:51]} 14. Ne2 {[%clk 0:02:39]}  d5 {[%clk 0:02:50]} 15. g4 {[%clk 0:02:40]}  Nc4 {[%clk 0:02:25]} 16. Bc1 {[%clk 0:02:38]}  Bd6 {[%clk 0:02:20]} 17. b3 {[%clk 0:02:33]}  Ne5 {[%clk 0:02:20]} 18. Ng3 {[%clk 0:02:28]}  Ned7 {[%clk 0:02:19]} 19. g5 {[%clk 0:02:22]}  hxg5 {[%clk 0:02:17]} 20. Bxg5 {[%clk 0:02:23]}  Qc7 {[%clk 0:02:12]} 21. Qd3 {[%clk 0:02:05]}  Nc5 {[%clk 0:02:05]} 22. Qf3 {[%clk 0:02:00]}  Nce4 {[%clk 0:02:02]} 23. Bxf6 {[%clk 0:01:51]}  Nxf6 {[%clk 0:02:01]} 24. Rfe1 {[%clk 0:01:51]}  Qb6 {[%clk 0:01:54]} 25. Rad1 {[%clk 0:01:41]}  Bxg3 {[%clk 0:01:50]} 26. Qxg3 {[%clk 0:01:41]}  Qb4 {[%clk 0:01:47]} 27. f3 {[%clk 0:01:33]}  Nh5 {[%clk 0:01:34]} 28. Qf2 {[%clk 0:01:33]}  Nf4 {[%clk 0:01:24]} 29. Bf1 {[%clk 0:01:21]}  Qb6 {[%clk 0:01:18]} 30. Qxb6 {[%clk 0:01:16]}  axb6 {[%clk 0:01:17]} 31. a4 {[%clk 0:01:17]}  Kf8 {[%clk 0:01:05]} 32. Kf2 {[%clk 0:01:17]}  Rxe1 {[%clk 0:01:02]} 33. Rxe1 {[%clk 0:01:17]}  Re8 {[%clk 0:01:02]} 34. Rxe8+ {[%clk 0:01:17]}  Kxe8 {[%clk 0:01:03]} 35. Ke3 {[%clk 0:01:15]}  Nh5 {[%clk 0:00:59]} 36. Bd3 {[%clk 0:01:07]}  Ke7 {[%clk 0:00:58]} 37. f4 {[%clk 0:01:02]}  Nf6 {[%clk 0:00:53]} 38. b4 {[%clk 0:00:57]}  Kd6 {[%clk 0:00:46]} 39. a5 {[%clk 0:00:54]}  bxa5 {[%clk 0:00:46]} 40. bxa5 {[%clk 0:00:55]}  c5 {[%clk 0:00:46]} 41. a6 {[%clk 0:00:52]}  bxa6 {[%clk 0:00:45]} 42. Bxa6 {[%clk 0:00:53]}  d4+ {[%clk 0:00:43]} 43. Kd3 {[%clk 0:00:39]}  Nd5 {[%clk 0:00:41]} 44. Bc4 {[%clk 0:00:38]}  Nxf4+ {[%clk 0:00:41]} 45. Ke4 {[%clk 0:00:38]}  Nxh3 {[%clk 0:00:41]} 46. Kf3 {[%clk 0:00:35]}  Ng5+ {[%clk 0:00:41]} 47. Kf4 {[%clk 0:00:33]}  f6 {[%clk 0:00:41]} 48. Bg8 {[%clk 0:00:33]}  Kc6 {[%clk 0:00:31]} 49. Kg4 {[%clk 0:00:33]}  Kb5 {[%clk 0:00:24]} 50. Kh5 {[%clk 0:00:33]}  c4 {[%clk 0:00:24]} 51. Kg6 {[%clk 0:00:32]}  d3 {[%clk 0:00:24]} 52. cxd3 {[%clk 0:00:32]}  cxd3 {[%clk 0:00:23]} 53. Bb3 {[%clk 0:00:28]}  Kb4 {[%clk 0:00:22]} 54. Bd1 {[%clk 0:00:27]}  Kc3 {[%clk 0:00:19]} 55. Kxg7 {[%clk 0:00:26]}  Ne4 {[%clk 0:00:20]} 56. Kf7 {[%clk 0:00:25]}  Kd4 {[%clk 0:00:20]} 57. Ke6 {[%clk 0:00:25]}  Ke3 {[%clk 0:00:20]} 58. Ba4 {[%clk 0:00:20]}  Kf4 {[%clk 0:00:18]} 59. Bd1 {[%clk 0:00:19]}  Ke3 {[%clk 0:00:17]} 60. Kd5 {[%clk 0:00:18]}  Nc3+ {[%clk 0:00:17]} 61. Ke6 {[%clk 0:00:18]}  Nxd1 {[%clk 0:00:18]} 62. Kxf6 {[%clk 0:00:19]}  Kf4 {[%clk 0:00:17]} 63. Kg7 {[%clk 0:00:19]}  Ne3 {[%clk 0:00:08]} 64. f6 {[%clk 0:00:20]}  Nf5+ {[%clk 0:00:08]} 65. Kg6 {[%clk 0:00:18]}  Nd6 {[%clk 0:00:08]} 66. f7 {[%clk 0:00:18]}  Nxf7 {[%clk 0:00:08]} 67. Kxf7 {[%clk 0:00:19]}  d2 {[%clk 0:00:09]} 0-1


[Site "https://www.chess.com"]

[Event "Titled Tuesday Blitz December 20 Early 2022"]
[White "Dadic, Ivan"]
[Black "Harkness, Bryan"]
[WhiteFideId "14531364"]
[BlackFideId "444227"]
[WhiteElo "2080"]
[BlackElo "1935"]
[Result "1-0"]
[Round "11"]
[TimeControl "180+2"]
[Date "2022.12.20"]
[WhiteClock "0:00:17"]
[BlackClock "0:00:02"]

1. e4 {[%clk 0:03:00]}  c5 {[%clk 0:02:59]} 2. Nc3 {[%clk 0:02:59]}  a6 {[%clk 0:02:57]} 3. Nge2 {[%clk 0:02:57]}  Nc6 {[%clk 0:02:55]} 4. g3 {[%clk 0:02:56]}  g6 {[%clk 0:02:55]} 5. d4 {[%clk 0:02:53]}  cxd4 {[%clk 0:02:55]} 6. Nxd4 {[%clk 0:02:53]}  Bg7 {[%clk 0:02:55]} 7. Nxc6 {[%clk 0:02:53]}  bxc6 {[%clk 0:02:54]} 8. Bg2 {[%clk 0:02:51]}  e6 {[%clk 0:02:36]} 9. O-O {[%clk 0:02:47]}  d5 {[%clk 0:02:35]} 10. exd5 {[%clk 0:02:45]}  cxd5 {[%clk 0:02:35]} 11. Re1 {[%clk 0:02:45]}  Ne7 {[%clk 0:02:34]} 12. Bg5 {[%clk 0:02:40]}  f6 {[%clk 0:02:14]} 13. Be3 {[%clk 0:02:32]}  O-O {[%clk 0:02:10]} 14. Bc5 {[%clk 0:02:32]}  Kh8 {[%clk 0:02:05]} 15. Bxe7 {[%clk 0:02:30]}  Qxe7 {[%clk 0:02:02]} 16. Nxd5 {[%clk 0:02:29]}  Qf7 {[%clk 0:01:52]} 17. Nb6 {[%clk 0:02:16]}  Rb8 {[%clk 0:01:51]} 18. Nc4 {[%clk 0:02:15]}  e5 {[%clk 0:01:44]} 19. b3 {[%clk 0:02:14]}  Be6 {[%clk 0:01:38]} 20. Ne3 {[%clk 0:02:11]}  Rfd8 {[%clk 0:01:37]} 21. Nd5 {[%clk 0:02:10]}  f5 {[%clk 0:01:30]} 22. c4 {[%clk 0:02:09]}  a5 {[%clk 0:01:28]} 23. Qd2 {[%clk 0:01:51]}  a4 {[%clk 0:01:26]} 24. Qc2 {[%clk 0:01:42]}  axb3 {[%clk 0:01:23]} 25. axb3 {[%clk 0:01:43]}  e4 {[%clk 0:01:24]} 26. Rab1 {[%clk 0:01:30]}  Bxd5 {[%clk 0:01:16]} 27. cxd5 {[%clk 0:01:31]}  Qxd5 {[%clk 0:01:16]} 28. Bf1 {[%clk 0:01:31]}  Rdc8 {[%clk 0:01:13]} 29. Qd1 {[%clk 0:01:27]}  Qc5 {[%clk 0:01:09]} 30. Bc4 {[%clk 0:01:24]}  Bd4 {[%clk 0:01:08]} 31. Qe2 {[%clk 0:01:24]}  Re8 {[%clk 0:01:05]} 32. Kg2 {[%clk 0:01:18]}  e3 {[%clk 0:01:02]} 33. f3 {[%clk 0:01:08]}  g5 {[%clk 0:01:00]} 34. Red1 {[%clk 0:01:06]}  f4 {[%clk 0:00:59]} 35. Rd3 {[%clk 0:01:05]}  Bg7 {[%clk 0:00:51]} 36. Rbd1 {[%clk 0:01:03]}  h6 {[%clk 0:00:45]} 37. Rd5 {[%clk 0:01:01]}  Qa3 {[%clk 0:00:42]} 38. h4 {[%clk 0:00:59]}  fxg3 {[%clk 0:00:37]} 39. hxg5 {[%clk 0:00:57]}  h5 {[%clk 0:00:20]} 40. Rh1 {[%clk 0:00:56]}  Bc3 {[%clk 0:00:14]} 41. Rxh5+ {[%clk 0:00:55]}  Kg7 {[%clk 0:00:14]} 42. Rd7+ {[%clk 0:00:50]}  Re7 {[%clk 0:00:15]} 43. Qxe3 {[%clk 0:00:41]}  Qb2+ {[%clk 0:00:09]} 44. Kxg3 {[%clk 0:00:28]}  Rxd7 {[%clk 0:00:09]} 45. Qe4 {[%clk 0:00:28]}  Be5+ {[%clk 0:00:08]} 46. Kg4 {[%clk 0:00:25]}  Qg2+ {[%clk 0:00:07]} 47. Kf5 {[%clk 0:00:25]}  Rf7+ {[%clk 0:00:07]} 48. Kxe5 {[%clk 0:00:23]}  Re8+ {[%clk 0:00:07]} 49. Be6 {[%clk 0:00:22]}  Qb2+ {[%clk 0:00:03]} 50. Kd6 {[%clk 0:00:19]}  Qd2+ {[%clk 0:00:02]} 51. Qd5 {[%clk 0:00:17]} 1-0


[Site "https://www.chess.com"]

[Event "Titled Tuesday Blitz December 20 Early 2022"]
[White "Diaz Argandona, Balack Leo"]
[Black "NowInChess"]
[WhiteFideId "3847160"]
[WhiteElo "1496"]
[BlackElo "2177"]
[Result "0-1"]
[Round "11"]
[TimeControl "180+2"]
[Date "2022.12.20"]
[WhiteClock "0:00:56"]
[BlackClock "0:00:36"]

1. d4 {[%clk 0:02:59]}  Nf6 {[%clk 0:02:59]} 2. c4 {[%clk 0:02:59]}  c5 {[%clk 0:02:59]} 3. d5 {[%clk 0:03:00]}  b5 {[%clk 0:02:59]} 4. Qc2 {[%clk 0:03:01]}  b4 {[%clk 0:02:59]} 5. e4 {[%clk 0:03:01]}  d6 {[%clk 0:02:59]} 6. g3 {[%clk 0:02:59]}  g6 {[%clk 0:02:59]} 7. Bg2 {[%clk 0:03:00]}  Bg7 {[%clk 0:02:59]} 8. Nh3 {[%clk 0:03:00]}  O-O {[%clk 0:02:52]} 9. O-O {[%clk 0:03:01]}  Nbd7 {[%clk 0:02:47]} 10. a3 {[%clk 0:03:02]}  a5 {[%clk 0:02:40]} 11. axb4 {[%clk 0:03:02]}  cxb4 {[%clk 0:02:41]} 12. f4 {[%clk 0:02:58]}  Qb6+ {[%clk 0:02:33]} 13. Kh1 {[%clk 0:02:58]}  Ng4 {[%clk 0:02:27]} 14. Bf3 {[%clk 0:02:45]}  Ne3 {[%clk 0:02:23]} 15. Bxe3 {[%clk 0:02:45]}  Qxe3 {[%clk 0:02:24]} 16. Kg2 {[%clk 0:02:37]}  Nc5 {[%clk 0:02:11]} 17. Nf2 {[%clk 0:02:13]}  Nb3 {[%clk 0:01:51]} 18. Ra4 {[%clk 0:02:08]}  Qxf3+ {[%clk 0:01:47]} 19. Kxf3 {[%clk 0:02:08]}  Nd4+ {[%clk 0:01:47]} 20. Ke3 {[%clk 0:02:00]}  Nxc2+ {[%clk 0:01:48]} 21. Kd2 {[%clk 0:02:01]}  b3 {[%clk 0:01:30]} 22. c5 {[%clk 0:01:53]}  dxc5 {[%clk 0:01:21]} 23. Nc3 {[%clk 0:01:53]}  Bd7 {[%clk 0:01:18]} 24. Rc4 {[%clk 0:01:53]}  Bd4 {[%clk 0:01:06]} 25. Nd3 {[%clk 0:01:48]}  Ne3 {[%clk 0:00:56]} 26. Ne5 {[%clk 0:01:29]}  Bxe5 {[%clk 0:00:51]} 27. Kxe3 {[%clk 0:01:29]}  Bxc3 {[%clk 0:00:47]} 28. Rxc3 {[%clk 0:01:30]}  a4 {[%clk 0:00:43]} 29. Rxc5 {[%clk 0:01:30]}  a3 {[%clk 0:00:42]} 30. bxa3 {[%clk 0:01:31]}  b2 {[%clk 0:00:41]} 31. Rb1 {[%clk 0:01:29]}  Rxa3+ {[%clk 0:00:41]} 32. Kd2 {[%clk 0:01:30]}  Rb8 {[%clk 0:00:40]} 33. Rc7 {[%clk 0:01:29]}  Ra1 {[%clk 0:00:40]} 34. Rxb2 {[%clk 0:00:55]}  Rxb2+ {[%clk 0:00:37]} 35. Kc3 {[%clk 0:00:56]}  Rc1+ {[%clk 0:00:36]} 0-1


[Site "https://www.chess.com"]

[Event "Titled Tuesday Blitz December 20 Early 2022"]
[White "Ducrest, Pierre"]
[Black "Fera, Aryanti"]
[WhiteFideId "1303627"]
[BlackFideId "7118988"]
[WhiteElo "2004"]
[BlackElo "1770"]
[Result "1/2-1/2"]
[Round "11"]
[TimeControl "180+2"]
[Date "2022.12.20"]
[WhiteClock "0:00:17"]
[BlackClock "0:00:11"]

1. d4 {[%clk 0:03:00]}  d5 {[%clk 0:02:56]} 2. c4 {[%clk 0:03:01]}  e6 {[%clk 0:02:57]} 3. Nc3 {[%clk 0:03:01]}  c5 {[%clk 0:02:57]} 4. cxd5 {[%clk 0:03:01]}  cxd4 {[%clk 0:02:58]} 5. Qa4+ {[%clk 0:03:01]}  Bd7 {[%clk 0:02:58]} 6. Qxd4 {[%clk 0:03:01]}  exd5 {[%clk 0:02:59]} 7. Qxd5 {[%clk 0:03:02]}  Nf6 {[%clk 0:02:59]} 8. Qd1 {[%clk 0:03:02]}  Bc5 {[%clk 0:02:59]} 9. Nf3 {[%clk 0:03:02]}  O-O {[%clk 0:02:59]} 10. a3 {[%clk 0:03:02]}  Qe7 {[%clk 0:02:57]} 11. Bg5 {[%clk 0:02:58]}  Bc6 {[%clk 0:02:42]} 12. e3 {[%clk 0:02:53]}  h6 {[%clk 0:02:38]} 13. Bxf6 {[%clk 0:02:41]}  Qxf6 {[%clk 0:02:39]} 14. Be2 {[%clk 0:02:41]}  Rd8 {[%clk 0:02:34]} 15. Qc2 {[%clk 0:02:41]}  Nd7 {[%clk 0:02:19]} 16. O-O {[%clk 0:02:40]}  Ne5 {[%clk 0:02:17]} 17. Ne4 {[%clk 0:02:31]}  Bxe4 {[%clk 0:01:58]} 18. Qxe4 {[%clk 0:02:30]}  Nxf3+ {[%clk 0:01:57]} 19. Bxf3 {[%clk 0:02:30]}  Qxb2 {[%clk 0:01:55]} 20. Rfb1 {[%clk 0:02:04]}  Qf6 {[%clk 0:01:44]} 21. Qxb7 {[%clk 0:02:03]}  Rac8 {[%clk 0:01:32]} 22. a4 {[%clk 0:02:03]}  g6 {[%clk 0:01:29]} 23. a5 {[%clk 0:02:00]}  Kg7 {[%clk 0:01:28]} 24. Qe4 {[%clk 0:01:48]}  Rd2 {[%clk 0:01:19]} 25. g3 {[%clk 0:01:22]}  Rcd8 {[%clk 0:01:01]} 26. Rc1 {[%clk 0:01:15]}  R8d6 {[%clk 0:00:21]} 27. Rab1 {[%clk 0:01:11]}  Ba3 {[%clk 0:00:10]} 28. Rc7 {[%clk 0:01:10]}  Rd7 {[%clk 0:00:10]} 29. Rxd7 {[%clk 0:01:04]}  Rxd7 {[%clk 0:00:11]} 30. Rb7 {[%clk 0:01:03]}  Rxb7 {[%clk 0:00:10]} 31. Qxb7 {[%clk 0:01:03]}  Bc5 {[%clk 0:00:10]} 32. Bd5 {[%clk 0:01:02]}  h5 {[%clk 0:00:07]} 33. h4 {[%clk 0:01:02]}  Qf5 {[%clk 0:00:05]} 34. Kg2 {[%clk 0:01:01]}  Qf6 {[%clk 0:00:04]} 35. a6 {[%clk 0:00:59]}  Bb6 {[%clk 0:00:05]} 36. Bf3 {[%clk 0:00:57]}  Kg8 {[%clk 0:00:04]} 37. Be4 {[%clk 0:00:57]}  Kg7 {[%clk 0:00:05]} 38. Bd5 {[%clk 0:00:57]}  Kg8 {[%clk 0:00:05]} 39. Qc8+ {[%clk 0:00:57]}  Kg7 {[%clk 0:00:05]} 40. Qd7 {[%clk 0:00:57]}  Kg8 {[%clk 0:00:05]} 41. Qb5 {[%clk 0:00:53]}  Kg7 {[%clk 0:00:05]} 42. Qe2 {[%clk 0:00:52]}  Qe5 {[%clk 0:00:05]} 43. Qd2 {[%clk 0:00:50]}  Bc5 {[%clk 0:00:04]} 44. Bf3 {[%clk 0:00:49]}  Qf6 {[%clk 0:00:04]} 45. Qc2 {[%clk 0:00:47]}  Bb6 {[%clk 0:00:03]} 46. Qb3 {[%clk 0:00:46]}  Kg8 {[%clk 0:00:04]} 47. Qb5 {[%clk 0:00:46]}  Kg7 {[%clk 0:00:04]} 48. Qc4 {[%clk 0:00:45]}  Kg8 {[%clk 0:00:05]} 49. Bd5 {[%clk 0:00:44]}  Kg7 {[%clk 0:00:05]} 50. Qa2 {[%clk 0:00:43]}  Kg8 {[%clk 0:00:05]} 51. e4 {[%clk 0:00:44]}  Kg7 {[%clk 0:00:05]} 52. f4 {[%clk 0:00:42]}  Qd4 {[%clk 0:00:05]} 53. e5 {[%clk 0:00:39]}  Qg1+ {[%clk 0:00:05]} 54. Kh3 {[%clk 0:00:39]}  Bf2 {[%clk 0:00:03]} 55. Qb3 {[%clk 0:00:38]}  Qf1+ {[%clk 0:00:01]} 56. Bg2 {[%clk 0:00:32]}  Qxa6 {[%clk 0:00:02]} 57. Qf3 {[%clk 0:00:30]}  Qe6+ {[%clk 0:00:02]} 58. Kh2 {[%clk 0:00:29]}  Bb6 {[%clk 0:00:03]} 59. Bh3 {[%clk 0:00:29]}  Qa2+ {[%clk 0:00:03]} 60. Bg2 {[%clk 0:00:29]}  Qa1 {[%clk 0:00:03]} 61. Qd5 {[%clk 0:00:28]}  Qg1+ {[%clk 0:00:03]} 62. Kh3 {[%clk 0:00:28]}  Qe3 {[%clk 0:00:04]} 63. Qe4 {[%clk 0:00:27]}  Qc3 {[%clk 0:00:04]} 64. e6 {[%clk 0:00:27]}  Qc8 {[%clk 0:00:04]} 65. f5 {[%clk 0:00:26]}  gxf5 {[%clk 0:00:05]} 66. Qe5+ {[%clk 0:00:24]}  Kg6 {[%clk 0:00:03]} 67. e7 {[%clk 0:00:23]}  f4+ {[%clk 0:00:03]} 68. Kh2 {[%clk 0:00:22]}  fxg3+ {[%clk 0:00:03]} 69. Qxg3+ {[%clk 0:00:19]}  Kh7 {[%clk 0:00:04]} 70. Be4+ {[%clk 0:00:19]}  f5 {[%clk 0:00:04]} 71. Qe5 {[%clk 0:00:16]}  Bc7 {[%clk 0:00:04]} 72. Bxf5+ {[%clk 0:00:14]}  Kg8 {[%clk 0:00:04]} 73. Bxc8 {[%clk 0:00:13]}  Bxe5+ {[%clk 0:00:04]} 74. Kh3 {[%clk 0:00:13]}  Kf7 {[%clk 0:00:05]} 75. Ba6 {[%clk 0:00:13]}  Kxe7 {[%clk 0:00:05]} 76. Be2 {[%clk 0:00:13]}  a5 {[%clk 0:00:05]} 77. Bxh5 {[%clk 0:00:14]}  a4 {[%clk 0:00:06]} 78. Bd1 {[%clk 0:00:14]}  a3 {[%clk 0:00:07]} 79. Bb3 {[%clk 0:00:15]}  Kf6 {[%clk 0:00:08]} 80. Kg4 {[%clk 0:00:15]}  Kg6 {[%clk 0:00:08]} 81. Ba2 {[%clk 0:00:15]}  Kh6 {[%clk 0:00:08]} 82. h5 {[%clk 0:00:15]}  Bb2 {[%clk 0:00:08]} 83. Bb3 {[%clk 0:00:15]}  Bc3 {[%clk 0:00:09]} 84. Ba2 {[%clk 0:00:16]}  Bb2 {[%clk 0:00:09]} 85. Bb3 {[%clk 0:00:17]}  Bc3 {[%clk 0:00:10]} 86. Ba2 {[%clk 0:00:17]}  Bb2 {[%clk 0:00:11]} 1/2-1/2


[Site "https://www.chess.com"]

[Event "Titled Tuesday Blitz December 20 Early 2022"]
[White "Eloisa Navez, Angel"]
[Black "RianKapriaga"]
[WhiteFideId "5117305"]
[WhiteElo "1942"]
[BlackElo "2327"]
[Result "1-0"]
[Round "11"]
[TimeControl "180+2"]
[Date "2022.12.20"]
[WhiteClock "0:00:18"]
[BlackClock "0:00:01"]

1. e4 {[%clk 0:03:00]}  c6 {[%clk 0:02:59]} 2. Nf3 {[%clk 0:02:59]}  d5 {[%clk 0:02:59]} 3. Nc3 {[%clk 0:02:57]}  Bg4 {[%clk 0:02:59]} 4. d4 {[%clk 0:02:54]}  Nf6 {[%clk 0:02:55]} 5. h3 {[%clk 0:02:49]}  Bxf3 {[%clk 0:02:54]} 6. Qxf3 {[%clk 0:02:47]}  e6 {[%clk 0:02:55]} 7. exd5 {[%clk 0:02:07]}  exd5 {[%clk 0:02:44]} 8. Bd3 {[%clk 0:02:02]}  Be7 {[%clk 0:02:42]} 9. Bg5 {[%clk 0:01:55]}  O-O {[%clk 0:02:41]} 10. O-O-O {[%clk 0:01:54]}  Nbd7 {[%clk 0:02:40]} 11. Rhe1 {[%clk 0:01:42]}  Re8 {[%clk 0:02:39]} 12. Ne2 {[%clk 0:01:35]}  h6 {[%clk 0:02:35]} 13. Bd2 {[%clk 0:01:24]}  Bd6 {[%clk 0:02:28]} 14. Ng3 {[%clk 0:01:20]}  Bxg3 {[%clk 0:02:23]} 15. Qxg3 {[%clk 0:01:15]}  Kh8 {[%clk 0:02:19]} 16. Qh4 {[%clk 0:01:06]}  Ne4 {[%clk 0:02:15]} 17. Qxd8 {[%clk 0:00:54]}  Raxd8 {[%clk 0:02:14]} 18. Be3 {[%clk 0:00:47]}  Re7 {[%clk 0:02:05]} 19. f3 {[%clk 0:00:47]}  Nef6 {[%clk 0:01:56]} 20. Bf4 {[%clk 0:00:40]}  Rde8 {[%clk 0:01:55]} 21. Rxe7 {[%clk 0:00:37]}  Rxe7 {[%clk 0:01:55]} 22. Kd2 {[%clk 0:00:33]}  Ng8 {[%clk 0:01:40]} 23. b3 {[%clk 0:00:32]}  g6 {[%clk 0:01:38]} 24. c4 {[%clk 0:00:32]}  Kg7 {[%clk 0:01:26]} 25. cxd5 {[%clk 0:00:31]}  cxd5 {[%clk 0:01:25]} 26. Rc1 {[%clk 0:00:31]}  Nb6 {[%clk 0:01:17]} 27. Rc5 {[%clk 0:00:27]}  a6 {[%clk 0:01:01]} 28. a4 {[%clk 0:00:25]}  Nf6 {[%clk 0:00:51]} 29. a5 {[%clk 0:00:24]}  Nbd7 {[%clk 0:00:45]} 30. Rc7 {[%clk 0:00:24]}  Re6 {[%clk 0:00:41]} 31. Rxb7 {[%clk 0:00:23]}  Rc6 {[%clk 0:00:32]} 32. Ra7 {[%clk 0:00:20]}  g5 {[%clk 0:00:23]} 33. Bh2 {[%clk 0:00:19]}  Nf8 {[%clk 0:00:15]} 34. Rxa6 {[%clk 0:00:19]}  Rc8 {[%clk 0:00:14]} 35. Rd6 {[%clk 0:00:19]}  Ne6 {[%clk 0:00:14]} 36. Be5 {[%clk 0:00:19]}  Ra8 {[%clk 0:00:11]} 37. a6 {[%clk 0:00:18]}  h5 {[%clk 0:00:10]} 38. b4 {[%clk 0:00:18]}  h4 {[%clk 0:00:05]} 39. b5 {[%clk 0:00:19]}  Nf4 {[%clk 0:00:04]} 40. b6 {[%clk 0:00:18]}  Nxd3 {[%clk 0:00:03]} 41. b7 {[%clk 0:00:17]}  Rxa6 {[%clk 0:00:02]} 42. Bxf6+ {[%clk 0:00:17]}  Kg6 {[%clk 0:00:01]} 43. Rxa6 {[%clk 0:00:18]} 1-0


[Site "https://www.chess.com"]